fUST/lending_fUST_20250719
["ID","MTS","AMOUNT","RATE_DAILY","PERIOD"]
[373302508,1752936640437,-460.0,0.00018231,2]
[373302509,1752936640447,-460.0,0.00018231,2]
[373302510,1752936640457,-711.99,0.00018231,2]
[373302511,1752936640466,-460.0,0.00018231,2]
[373302512,1752936640476,-1093.63,0.00018231,2]
[373302513,1752936640486,-684.59,0.00018231,2]
[373302514,1752936640496,-460.0,0.00018231,2]
[373302515,1752936640506,-460.0,0.00018231,2]
[373302516,1752936640517,-460.0,0.00018231,2]
[373302517,1752936640527,-490.35,0.00018232,2]
[373302518,1752936640536,-1168.05,0.00018232,2]
[373302519,1752936640546,-460.0,0.00018232,2]
[373302520,1752936640555,-460.0,0.00018232,2]
[373302521,1752936640565,-551.53,0.00018232,2]
[373302522,1752936640574,-460.0,0.00018232,2]
[373302523,1752936640584,-721.86,0.00018232,2]
[373302524,1752936640594,-460.0,0.00018232,2]
[373302525,1752936640611,-6531.39054735,0.00018452,2]
[373302526,1752936640621,-583.33,0.00018503,2]
[373302527,1752936640633,-460.0,0.00018503,2]
[373302528,1752936640653,-460.0,0.00018504,2]
[373302529,1752936640663,-1761.12,0.00018504,2]
[373302530,1752936640672,-460.0,0.00018504,2]
[373302531,1752936640682,-353.15521766,0.00018504,2]
[373302532,1752936640692,-460.0,0.00018504,2]
[373302533,1752936640701,-313.3,0.00018505,2]
[373302534,1752936640710,-460.0,0.00018505,2]
[373302535,1752936640720,-711.99,0.00018505,2]
[373302536,1752936640729,-460.0,0.00018505,2]
[373302537,1752936640739,-1093.63,0.00018505,2]
[373302538,1752936640748,-684.59,0.00018505,2]
[373302539,1752936640758,-460.0,0.00018505,2]
[373302540,1752936640767,-460.0,0.00018505,2]
[373302541,1752936640777,-460.0,0.00018505,2]
[373302542,1752936640787,-490.35,0.00018506,2]
[373302543,1752936640797,-1168.05,0.00018506,2]
[373302544,1752936640807,-365.8002156,0.00018506,2]
[373302545,1752936640818,-460.0,0.00018506,2]
[373302546,1752936640828,-551.53,0.00018506,2]
[373302547,1752936640838,-460.0,0.00018506,2]
[373302548,1752936640848,-721.86,0.00018506,2]
[373302549,1752936640857,-460.0,0.00018506,2]
[373302550,1752936640867,-525.83049785,0.000186,2]
[373302551,1752936640877,-160.0,0.000186,2]
[373302552,1752936640888,-230.94145789,0.000186,2]
[373302553,1752936640899,-160.0,0.000186,2]
[373302554,1752936640908,-12612.80205064,0.000186,2]
[373302555,1752936640918,-215.67360783,0.000186,2]
[373302556,1752936640927,-839.454303,0.000186,2]
[373302557,1752936640937,-160.0,0.000186,2]
[373302558,1752936640947,-214.52603969,0.000186,2]
[373302559,1752936640956,-160.0,0.00018601,2]
[373302560,1752936640966,-6531.39054735,0.00018728,2]
[373302561,1752936640976,-171.61,0.00018769,3]
[373302562,1752936640985,-514.84,0.00018769,3]
[373302563,1752936640994,-343.21,0.0001877,3]
[373302564,1752936641004,-583.33,0.00018777,2]
[373302565,1752936641013,-460.0,0.00018777,2]
[373302566,1752936641022,-460.0,0.00018778,2]
[373302567,1752936641032,-1761.12,0.00018778,2]
[373302568,1752936641041,-460.0,0.00018778,2]
[373302569,1752936641050,-535.96,0.00018778,2]
[373302570,1752936641060,-578.44892129,0.00018779,2]
[373302571,1752936641069,-711.99,0.00018779,2]
[373302572,1752936641079,-460.0,0.00018779,2]
[373302573,1752936641089,-1093.63,0.00018779,2]
[373302574,1752936641098,-684.59,0.00018779,2]
[373302575,1752936641108,-460.0,0.00018779,2]
[373302576,1752936641118,-460.0,0.00018779,2]
[373302577,1752936641127,-460.0,0.00018779,2]
[373302578,1752936641139,-490.35,0.0001878,2]
[373302579,1752936641149,-1168.05,0.0001878,2]
[373302580,1752936641159,-460.0,0.0001878,2]
[373302581,1752936641169,-551.53,0.0001878,2]
[373302582,1752936641178,-460.0,0.0001878,2]
[373302583,1752936641188,-721.86,0.0001878,2]
[373302584,1752936641202,-460.0,0.0001878,2]
[373302585,1752936641212,-1063.76027661,0.000189,2]
[373302586,1752936641221,-160.0,0.00018987,2]
[373302587,1752936641231,-6531.39054735,0.00019003,2]
[373302588,1752936641241,-686.42,0.00019042,3]
[373302589,1752936641250,-583.33,0.00019051,2]
[373302590,1752936641260,-460.0,0.00019051,2]
[373302591,1752936641270,-460.0,0.00019052,2]
[373302592,1752936641279,-1761.12,0.00019052,2]
[373302593,1752936641289,-251.95065326,0.00019052,2]
[373302594,1752936641299,-711.99,0.00019053,2]
[373302595,1752936641309,-460.0,0.00019053,2]
[373302596,1752936641318,-1093.63,0.00019053,2]
[373302597,1752936641327,-684.59,0.00019053,2]
[373302598,1752936641338,-460.0,0.00019053,2]
[373302599,1752936641347,-460.0,0.00019053,2]
[373302600,1752936641358,-507.8,0.00019053,2]
[373302601,1752936641369,-490.35,0.00019054,2]
[373302602,1752936641384,-1168.05,0.00019054,2]
[373302603,1752936641393,-460.0,0.00019054,2]
[373302604,1752936641403,-551.53,0.00019054,2]
[373302606,1752936641413,-460.0,0.00019054,2]
[373302608,1752936641422,-721.86,0.00019054,2]
[373302610,1752936641432,-460.0,0.00019054,2]
[373302612,1752936641441,-151.38205073,0.00019058,2]
[373302614,1752936641450,-151.0,0.00019058,2]
[373302616,1752936641460,-151.56803976,0.00019058,2]
[373302618,1752936641469,-151.0,0.00019058,2]
[373302620,1752936641478,-151.0,0.00019058,2]
[373302622,1752936641488,-500.0,0.00019058,2]
[373302624,1752936641498,-151.0,0.00019058,2]
[373302626,1752936641507,-151.0,0.00019058,2]
[373302629,1752936641526,-151.0,0.00019058,2]
[373302631,1752936641538,-151.0,0.00019058,2]
[373302634,1752936641549,-500.0,0.00019058,2]
[373302636,1752936641560,-151.0,0.00019058,2]
[373302638,1752936641570,-151.0,0.00019058,2]
[373302640,1752936641580,-151.0,0.00019058,2]
[373302642,1752936641590,-244.749975,0.00019178,2]
[373302644,1752936641600,-151.0,0.00019273,2]
[373302646,1752936641610,-280.55485677,0.00019273,2]
[373302648,1752936641620,-207.4,0.00019273,2]
[373302650,1752936641630,-151.0,0.00019273,2]
[373302652,1752936641643,-151.0,0.00019273,2]
[373302654,1752936641653,-151.0,0.00019273,2]
[373302657,1752936641663,-151.0,0.00019273,2]
[373302659,1752936641673,-151.0,0.00019273,2]
[373302661,1752936641682,-151.0,0.00019273,2]
[373302663,1752936641692,-151.0,0.00019273,2]
[373302665,1752936641702,-151.0,0.00019273,2]
[373302667,1752936641713,-8716.07617171,0.00019273,2]
[373302669,1752936641723,-6531.39054735,0.00019279,2]
[373302671,1752936641733,-583.33,0.00019325,2]
[373302673,1752936641743,-460.0,0.00019325,2]
[373302675,1752936641752,-460.0,0.00019326,2]
[373302677,1752936641762,-1761.12,0.00019326,2]
[373302679,1752936641771,-711.99,0.00019327,2]
[373302682,1752936641781,-460.0,0.00019327,2]
[373302684,1752936641791,-1093.63,0.00019327,2]
[373302686,1752936641801,-684.59,0.00019327,2]
[373302688,1752936641810,-460.0,0.00019327,2]
[373302690,1752936641820,-460.0,0.00019327,2]
[373302692,1752936641831,-490.35,0.00019328,2]
[373302694,1752936641840,-1168.05,0.00019328,2]
[373302696,1752936641850,-460.0,0.00019328,2]
[373302698,1752936641860,-551.53,0.00019328,2]
[373302700,1752936641870,-460.0,0.00019328,2]
[373302702,1752936641881,-721.86,0.00019328,2]
[373302704,1752936641894,-460.0,0.00019328,2]
[373302706,1752936641903,-203.19342844,0.00019332,2]
[373302708,1752936641913,-151.86364359,0.00019332,2]
[373302710,1752936641922,-151.55248288,0.00019332,2]
[373302712,1752936641932,-500.0,0.00019332,2]
[373302714,1752936641946,-151.0,0.00019332,2]
[373302716,1752936641955,-500.0,0.00019332,2]
[373302718,1752936641969,-500.0,0.00019332,2]
[373302720,1752936641979,-177.976963,0.00019345,2]
[373302722,1752936641989,-700.0,0.0001942,2]
[373302724,1752936641998,-677.74919744,0.00019506,2]
[373302726,1752936642008,-260.0,0.00019535,2]
[373302728,1752936642018,-6531.39054735,0.00019555,2]
[373302730,1752936642027,-583.33,0.00019599,2]
[373302732,1752936642037,-460.0,0.00019599,2]
[373302734,1752936642047,-460.0,0.000196,2]
[373302736,1752936642056,-1761.12,0.000196,2]
[373302738,1752936642066,-711.99,0.00019601,2]
[373302740,1752936642076,-460.0,0.00019601,2]
[373302742,1752936642086,-1093.63,0.00019601,2]
[373302744,1752936642096,-684.59,0.00019601,2]
[373302746,1752936642105,-460.0,0.00019601,2]
[373302748,1752936642115,-460.0,0.00019601,2]
[373302750,1752936642125,-490.35,0.00019602,2]
[373302752,1752936642137,-1168.05,0.00019602,2]
[373302755,1752936642151,-460.0,0.00019602,2]
[373302756,1752936642161,-551.53,0.00019602,2]
[373302758,1752936642171,-460.0,0.00019602,2]
[373302761,1752936642182,-721.86,0.00019602,2]
[373302762,1752936642192,-460.0,0.00019602,2]
[373302764,1752936642206,-501.784375,0.00019606,2]
[373302766,1752936642216,-151.0,0.00019606,2]
[373302769,1752936642226,-500.0,0.00019606,2]
[373302771,1752936642236,-500.0,0.00019606,2]
[373302772,1752936642246,-6531.39054735,0.00019831,2]
[373302774,1752936642256,-583.33,0.00019873,2]
[373302776,1752936642266,-460.0,0.00019873,2]
[373302779,1752936642276,-460.0,0.00019874,2]
[373302781,1752936642286,-1761.12,0.00019874,2]
[373302783,1752936642296,-711.99,0.00019875,2]
[373302785,1752936642306,-460.0,0.00019875,2]
[373302787,1752936642316,-1093.63,0.00019875,2]
[373302789,1752936642327,-684.59,0.00019875,2]
[373302791,1752936642337,-460.0,0.00019875,2]
[373302792,1752936642346,-460.0,0.00019875,2]
[373302794,1752936642356,-490.35,0.00019876,2]
[373302796,1752936642366,-1168.05,0.00019876,2]
[373302799,1752936642376,-460.0,0.00019876,2]
[373302800,1752936642388,-551.53,0.00019876,2]
[373302802,1752936642397,-460.0,0.00019876,2]
[373302804,1752936642407,-721.86,0.00019876,2]
[373302807,1752936642417,-460.0,0.00019876,2]
[373302808,1752936642426,-292.0,0.0001988,2]
[373302811,1752936642436,-500.0,0.0001988,2]
[373302813,1752936642446,-500.0,0.0001988,2]
[373302815,1752936642456,-3640.65592658,0.000199,2]
[373302817,1752936642466,-86629.29424444,0.0001999,2]
[373302819,1752936642476,-6539.0548114,0.0002,2]
[373302821,1752936642486,-173.416,0.0002,2]
[373302823,1752936642496,-300.40023785,0.0002,2]
[373302825,1752936642505,-6455.44030131,0.00020021,2]
[373302827,1752936642515,-360.0,0.00020083,2]
[373302830,1752936642525,-6531.39054735,0.00020107,2]
[373302833,1752936642534,-343.22,0.00020139,3]
[373302836,1752936642543,-686.42,0.0002014,3]
[373302839,1752936642553,-583.33,0.00020147,2]
[373302842,1752936642562,-460.0,0.00020147,2]
[373302844,1752936642572,-460.0,0.00020148,2]
[373302846,1752936642581,-1761.12,0.00020148,2]
[373302848,1752936642591,-711.99,0.00020149,2]
[373302850,1752936642600,-460.0,0.00020149,2]
[373302852,1752936642609,-1093.63,0.00020149,2]
[373302853,1752936642619,-684.59,0.00020149,2]
[373302856,1752936642628,-460.0,0.00020149,2]
[373302858,1752936642638,-460.0,0.00020149,2]
[373302861,1752936642647,-490.35,0.0002015,2]
[373302863,1752936642658,-1168.05,0.0002015,2]
[373302865,1752936642667,-460.0,0.0002015,2]
[373302867,1752936642677,-551.53,0.0002015,2]
[373302869,1752936642687,-460.0,0.0002015,2]
[373302871,1752936642696,-721.86,0.0002015,2]
[373302873,1752936642706,-332.46861876,0.0002015,2]
[373302875,1752936642715,-500.0,0.00020154,2]
[373302877,1752936642725,-500.0,0.00020154,2]
[373302879,1752936642735,-423.00797,0.00020187,2]
[373302882,1752936642744,-1047.52961949,0.00020214,2]
[373302883,1752936642755,-6455.44030132,0.00020293,2]
[373302885,1752936642764,-677.74919743,0.00020355,2]
[373302888,1752936642776,-6531.39054735,0.00020383,3]
[373302890,1752936642785,-1372.84,0.00020412,3]
[373302892,1752936642795,-12612.80205064,0.00020412,3]
[373302894,1752936642805,-214.52603969,0.00020412,3]
[373302896,1752936642814,-583.33,0.00020421,2]
[373302898,1752936642824,-460.0,0.00020421,2]
[373302900,1752936642834,-460.0,0.00020422,2]
[373302901,1752936642843,-1761.12,0.00020422,2]
[373302904,1752936642853,-711.99,0.00020423,2]
[373302906,1752936642863,-460.0,0.00020423,2]
[373302907,1752936642873,-1093.63,0.00020423,2]
[373302909,1752936642884,-684.59,0.00020423,2]
[373302911,1752936642894,-460.0,0.00020423,2]
[373302914,1752936642904,-548.41,0.00020423,2]
[373302916,1752936642913,-490.35,0.00020424,2]
[373302918,1752936642923,-1168.05,0.00020424,2]
[373302920,1752936642932,-460.0,0.00020424,2]
[373302921,1752936642942,-551.53,0.00020424,2]
[373302923,1752936642951,-2126.04845076,0.00020424,2]
[373302925,1752936642961,-460.0,0.00020424,2]
[373302927,1752936642971,-721.86,0.00020424,2]
[373302929,1752936642980,-500.0,0.00020428,2]
[373302931,1752936642989,-500.0,0.00020428,2]
[373302933,1752936642999,-2567.0,0.000205,2]
[373302936,1752936643009,-2567.0,0.000205,2]
[373302937,1752936643019,-2567.0,0.000205,2]
[373302940,1752936643029,-2567.0,0.000205,2]
[373302942,1752936643040,-2567.0,0.000205,2]
[373302944,1752936643050,-2567.0,0.000205,2]
[373302946,1752936643060,-2567.0,0.000205,2]
[373302948,1752936643070,-2567.0,0.000205,2]
[373302950,1752936643079,-2567.0,0.000205,2]
[373302952,1752936643089,-2567.0,0.000205,2]
[373302954,1752936643099,-700.0,0.00020516,2]
[373302956,1752936643109,-460.0,0.00020631,2]
[373302958,1752936643119,-215.0738,0.00020642,2]
[373302960,1752936643128,-6531.39054735,0.00020659,3]
[373302962,1752936643142,-177.976963,0.00020659,3]
[373302964,1752936643152,-583.33,0.00020695,2]
[373302966,1752936643162,-460.0,0.00020695,2]
[373302968,1752936643172,-460.0,0.00020696,2]
[373302970,1752936643181,-1761.12,0.00020696,2]
[373302972,1752936643191,-711.99,0.00020697,2]
[373302974,1752936643206,-460.0,0.00020697,2]
[373302976,1752936643215,-1093.63,0.00020697,2]
[373302978,1752936643225,-684.59,0.00020697,2]
[373302980,1752936643235,-490.35,0.00020698,2]
[373302982,1752936643245,-1168.05,0.00020698,2]
[373302984,1752936643255,-460.0,0.00020698,2]
[373302986,1752936643264,-551.53,0.00020698,2]
[373302988,1752936643275,-460.0,0.00020698,2]
[373302990,1752936643285,-721.86,0.00020698,2]
[373302992,1752936643295,-500.0,0.00020702,2]
[373302994,1752936643305,-500.0,0.00020702,2]
[373302997,1752936643316,-218.0,0.00020703,2]
[373302998,1752936643327,-16127.25694353,0.00020739,2]
[373303001,1752936643337,-833.492,0.00020772,2]
[373303003,1752936643347,-1492.87,0.000208,2]
[373303004,1752936643356,-218.0,0.00020839,2]
[373303007,1752936643366,-500.0,0.0002084,2]
[373303009,1752936643376,-348.63922981,0.0002084,2]
[373303011,1752936643389,-504.31142319,0.0002084,2]
[373303013,1752936643399,-540.13657752,0.0002084,2]
[373303015,1752936643409,-500.0,0.0002084,2]
[373303017,1752936643419,-500.0,0.0002084,2]
[373303019,1752936643428,-500.0,0.0002084,2]
[373303021,1752936643439,-500.0,0.0002084,2]
[373303023,1752936643448,-500.0,0.0002084,2]
[373303025,1752936643458,-218.0,0.00020841,2]
[373303027,1752936643467,-177.976963,0.00020852,2]
[373303029,1752936643477,-218.0,0.00020903,2]
[373303031,1752936643487,-973.25380815,0.00020913,2]
[373303033,1752936643497,-6531.39054735,0.00020934,4]
[373303035,1752936643506,-583.33,0.00020969,2]
[373303037,1752936643516,-460.0,0.00020969,2]
[373303039,1752936643526,-460.0,0.0002097,2]
[373303041,1752936643535,-1761.12,0.0002097,2]
[373303043,1752936643545,-711.99,0.00020971,2]
[373303045,1752936643555,-460.0,0.00020971,2]
[373303047,1752936643565,-1093.63,0.00020971,2]
[373303049,1752936643574,-684.59,0.00020971,2]
[373303051,1752936643583,-490.35,0.00020972,2]
[373303053,1752936643593,-1168.05,0.00020972,2]
[373303055,1752936643603,-460.0,0.00020972,2]
[373303057,1752936643612,-551.53,0.00020972,2]
[373303059,1752936643621,-460.0,0.00020972,2]
[373303061,1752936643631,-721.86,0.00020972,2]
[373303063,1752936643642,-500.0,0.00020973,2]
[373303065,1752936643652,-500.0,0.00020973,2]
[373303067,1752936643662,-500.0,0.00020973,2]
[373303069,1752936643671,-500.0,0.00020973,2]
[373303071,1752936643681,-500.0,0.00020973,2]
[373303073,1752936643690,-500.0,0.00020973,2]
[373303075,1752936643699,-500.0,0.00020973,2]
[373303077,1752936643709,-500.0,0.00020973,2]
[373303079,1752936643720,-500.0,0.00020976,2]
[373303081,1752936643730,-500.0,0.00020976,2]
[373303083,1752936643739,-185190.70443502,0.00021,4]
[373303085,1752936643749,-151.0,0.00021,2]
[373303101,1752936643900,-151.0,0.00021,2]
[373303103,1752936643910,-985.83443,0.00021,2]
[373303105,1752936643919,-217.19113,0.00021,2]
[373303107,1752936643929,-217.19113,0.00021,2]
[373303109,1752936643938,-177.976963,0.00021,4]
[373303111,1752936643948,-151.0,0.00021,2]
[373303113,1752936643958,-151.0,0.00021,2]
[373303115,1752936643968,-151.0,0.00021,2]
[373303118,1752936643977,-151.0,0.00021,2]
[373303121,1752936643986,-151.0,0.00021,2]
[373303124,1752936643996,-218.0,0.00021088,2]
[373303127,1752936644006,-224.2,0.0002109,2]
[373303129,1752936644015,-480.0,0.00021179,2]
[373303131,1752936644024,-218.0,0.00021182,2]
[373303133,1752936644033,-500.0,0.00021199,2]
[373303135,1752936644043,-1985.02893697,0.00021199,2]
[373303137,1752936644052,-1985.02893697,0.00021199,2]
[373303139,1752936644062,-1985.02893697,0.00021199,2]
[373303141,1752936644071,-229.93354632,0.00021199,2]
[373303143,1752936644081,-500.0,0.00021199,2]
[373303145,1752936644090,-1985.02893697,0.00021199,2]
[373303147,1752936644100,-500.0,0.00021199,2]
[373303149,1752936644109,-1985.02893697,0.00021199,2]
[373303151,1752936644119,-1985.02893697,0.00021199,2]
[373303153,1752936644128,-1985.02893697,0.00021199,2]
[373303155,1752936644143,-1985.02893697,0.00021199,2]
[373303157,1752936644153,-40468.154267,0.000212,3]
[373303159,1752936644163,-677.74919743,0.00021203,2]
[373303162,1752936644175,-218.0,0.00021206,2]
[373303164,1752936644186,-6531.39054735,0.0002121,4]
[373303166,1752936644199,-500.0,0.00021212,2]
[373303168,1752936644210,-583.33,0.00021243,2]
[373303170,1752936644220,-460.0,0.00021243,2]
[373303172,1752936644230,-475.92213994,0.00021244,2]
[373303174,1752936644239,-1761.12,0.00021244,2]
[373303176,1752936644249,-250.0,0.00021244,2]
[373303178,1752936644259,-711.99,0.00021245,2]
[373303180,1752936644269,-460.0,0.00021245,2]
[373303182,1752936644279,-1093.63,0.00021245,2]
[373303184,1752936644288,-684.59,0.00021245,2]
[373303186,1752936644298,-490.35,0.00021246,2]
[373303188,1752936644307,-1168.05,0.00021246,2]
[373303190,1752936644317,-460.0,0.00021246,2]
[373303192,1752936644326,-551.53,0.00021246,2]
[373303194,1752936644335,-460.0,0.00021246,2]
[373303196,1752936644345,-721.86,0.00021246,2]
[373303198,1752936644354,-500.0,0.0002125,2]
[373303200,1752936644364,-500.0,0.0002125,2]
[373303202,1752936644373,-20000.0,0.000213,3]
[373303204,1752936644383,-218.0,0.00021313,2]
[373303206,1752936644395,-1000.0,0.00021388,2]
[373303208,1752936644405,-679.88427532,0.00021388,2]
[373303210,1752936644415,-500.0,0.00021388,2]
[373303212,1752936644425,-1000.0,0.00021388,2]
[373303214,1752936644434,-218.0,0.00021425,2]
[373303216,1752936644444,-218.0,0.00021458,2]
[373303219,1752936644454,-2968.92380878,0.00021459,2]
[373303221,1752936644463,-223.618976,0.00021459,2]
[373303223,1752936644472,-151.0,0.00021459,2]
[373303225,1752936644482,-151.0,0.00021459,2]
[373303227,1752936644491,-6531.39054735,0.00021486,5]
[373303228,1752936644500,-583.33,0.00021517,2]
[373303231,1752936644510,-460.0,0.00021517,2]
[373303233,1752936644519,-218.0,0.00021518,2]
[373303235,1752936644529,-1761.12,0.00021518,2]
[373303237,1752936644538,-711.99,0.00021519,2]
[373303238,1752936644547,-460.0,0.00021519,2]
[373303241,1752936644559,-1093.63,0.00021519,2]
[373303243,1752936644568,-684.59,0.00021519,2]
[373303245,1752936644578,-151.0,0.00021519,2]
[373303247,1752936644587,-151.0,0.00021519,2]
[373303249,1752936644597,-151.0,0.00021519,2]
[373303251,1752936644606,-490.35,0.0002152,2]
[373303253,1752936644615,-1168.05,0.0002152,2]
[373303255,1752936644624,-460.0,0.0002152,2]
[373303257,1752936644634,-551.53,0.0002152,2]
[373303258,1752936644644,-460.0,0.0002152,2]
[373303261,1752936644653,-721.86,0.0002152,2]
[373303263,1752936644664,-500.0,0.00021521,2]
[373303265,1752936644673,-1000.0,0.00021521,2]
[373303267,1752936644683,-1000.0,0.00021521,2]
[373303269,1752936644693,-1000.0,0.00021521,2]
[373303271,1752936644702,-1000.0,0.00021521,2]
[373303273,1752936644712,-500.0,0.00021524,2]
[373303275,1752936644721,-500.0,0.00021524,2]
[373303277,1752936644730,-177.976963,0.00021539,4]
[373303279,1752936644739,-218.0,0.0002159,2]
[373303281,1752936644749,-700.0,0.00021612,2]
[373303283,1752936644758,-160.0,0.00021662,3]
[373303285,1752936644767,-177.976963,0.00021676,3]
[373303287,1752936644776,-6531.39054735,0.00021762,5]
[373303289,1752936644785,-218.0,0.00021789,2]
[373303291,1752936644794,-583.33,0.00021791,2]
[373303293,1752936644803,-460.0,0.00021791,2]
[373303295,1752936644813,-1761.12,0.00021792,2]
[373303296,1752936644822,-711.99,0.00021793,2]
[373303298,1752936644832,-460.0,0.00021793,2]
[373303301,1752936644841,-1093.63,0.00021793,2]
[373303302,1752936644851,-684.59,0.00021793,2]
[373303305,1752936644861,-490.35,0.00021794,2]
[373303306,1752936644870,-1168.05,0.00021794,2]
[373303307,1752936644879,-460.0,0.00021794,2]
[373303308,1752936644891,-551.53,0.00021794,2]
[373303309,1752936644901,-460.0,0.00021794,2]
[373303310,1752936644911,-721.86,0.00021794,2]
[373303311,1752936644922,-500.0,0.00021798,2]
[373303312,1752936644932,-291.0,0.00021798,2]
[373303313,1752936644942,-218.0,0.00021813,2]
[373303314,1752936644952,-500.0,0.00021836,2]
[373303315,1752936644961,-500.0,0.00021836,2]
[373303316,1752936644971,-500.0,0.00021853,2]
[373303317,1752936644981,-407.28226249,0.00021867,2]
[373303318,1752936644990,-500.0,0.00021917,2]
[373303319,1752936644999,-500.0,0.00021917,2]
[373303320,1752936645009,-153.0,0.00021918,2]
[373303321,1752936645019,-153.0,0.00021918,2]
[373303322,1752936645028,-153.0,0.00021918,2]
[373303323,1752936645037,-153.0,0.00021918,2]
[373303324,1752936645047,-153.0,0.00021918,2]
[373303325,1752936645057,-153.0,0.00021918,2]
[373303326,1752936645066,-153.0,0.00021918,2]
[373303327,1752936645075,-153.0,0.00021918,2]
[373303328,1752936645085,-153.0,0.00021918,2]
[373303329,1752936645094,-153.0,0.00021918,2]
[373303330,1752936645104,-153.0,0.00021918,2]
[373303332,1752936645114,-153.0,0.00021918,2]
[373303333,1752936645123,-153.0,0.00021918,2]
[373303335,1752936645133,-153.0,0.00021918,2]
[373303337,1752936645147,-153.0,0.00021918,2]
[373303339,1752936645157,-153.0,0.00021918,2]
[373303341,1752936645167,-153.0,0.00021918,2]
[373303344,1752936645177,-153.0,0.00021918,2]
[373303345,1752936645186,-153.0,0.00021918,2]
[373303347,1752936645199,-153.0,0.00021918,2]
[373303350,1752936645209,-153.0,0.00021918,2]
[373303351,1752936645218,-153.0,0.00021918,2]
[373303354,1752936645228,-153.0,0.00021918,2]
[373303355,1752936645238,-153.0,0.00021918,2]
[373303357,1752936645247,-153.0,0.00021918,2]
[373303359,1752936645256,-153.0,0.00021918,2]
[373303361,1752936645267,-153.0,0.00021918,2]
[373303363,1752936645276,-153.0,0.00021918,2]
[373303365,1752936645285,-153.0,0.00021918,2]
[373303367,1752936645295,-153.0,0.00021918,2]
[373303369,1752936645304,-153.0,0.00021918,2]
[373303371,1752936645315,-153.0,0.00021918,2]
[373303373,1752936645324,-153.0,0.00021918,2]
[373303375,1752936645334,-153.0,0.00021918,2]
[373303377,1752936645343,-153.0,0.00021918,2]
[373303379,1752936645353,-153.0,0.00021918,2]
[373303381,1752936645362,-153.0,0.00021918,2]
[373303383,1752936645372,-153.0,0.00021918,2]
[373303385,1752936645381,-153.0,0.00021918,2]
[373303387,1752936645394,-153.0,0.00021918,2]
[373303389,1752936645403,-153.0,0.00021918,2]
[373303391,1752936645413,-153.0,0.00021918,2]
[373303393,1752936645422,-153.0,0.00021918,2]
[373303395,1752936645432,-153.0,0.00021918,2]
[373303397,1752936645441,-200.0,0.00021918,2]
[373303399,1752936645450,-151.0,0.00021918,7]
[373303401,1752936645460,-151.0,0.00021918,7]
[373303404,1752936645470,-319.699455,0.00021918,7]
[373303406,1752936645480,-319.699455,0.00021918,7]
[373303408,1752936645489,-218.0,0.00021919,2]
[373303410,1752936645498,-501.4575332,0.00021921,2]
[373303412,1752936645508,-500.0,0.00021921,2]
[373303414,1752936645517,-500.0,0.00021921,2]
[373303416,1752936645527,-218.0,0.00021934,2]
[373303418,1752936645537,-1500.0,0.00021936,2]